Cogmind - Beta 13 @@@ ROGUE MODE // 2024.02.27 @ 04:42:28 Player: ktur Result: Destroyed self with Subdweller Shrapnel Launcher Performance ------------- Evolutions (0) 0 Regions Visited (2) 400 Robots Destroyed (34) 170 Value Destroyed (937) 937 Prototype IDs (0) 0 Alien Tech Used (0) 0 Bonus (0) 0 TOTAL SCORE: 1507 Bonus ------- None Cogmind --------- Core Integrity 0/250 Matter 110/300 Energy 75/100 System Corruption 12% Temperature Cool (0) Movement Treading (240) Ox1 Location -10/Subcaves Parts ------- > --- POWER (1) -------- Subdweller Power Source > --- PROPULSION (2) --- Light Treads > --- UTILITY (2) ------ Makeshift Light Armor Plating > --- WEAPON (2) ------- Improved Light Cannon Subdweller Shrapnel Launcher > --- INVENTORY (5) ---- High-capacity Battery (250) Light EM Pulse Cannon Improved Light Cannon Grenade Launcher Grenade Launcher Peak State ------------ > --- POWER ------------ Subdweller Power Source > --- PROPULSION ------- Wheel Subdweller Monowheel > --- UTILITY ---------- Disposable Heat Sink Makeshift Light Armor Plating > --- WEAPON ----------- Light EM Pulse Cannon Light EM Pulse Cannon > --- INVENTORY -------- High-capacity Battery Improved Light Cannon Grenade Launcher Subdweller Shrapnel Launcher [Rating: 15] Favorites ----------- Power Subdweller Power Source Engine Subdweller Power Source Propulsion Light Treads Treads Light Treads Leg Aluminum Leg Wheel Wheel Utility Makeshift Light Armor Plating Device Heat Sink Storage Huge Storage Unit Protection Makeshift Light Armor Plating Weapon Improved Light Cannon Energy Gun EM Pulse Gun Energy Cannon Light EM Pulse Cannon Ballistic Gun Autogun Ballistic Cannon Improved Light Cannon Launcher Subdweller Shrapnel Launcher Build | -11 -10 -10 ------- Run | Yrd Mat Sub Slots Evolved . | . . . Power . | . . . Propulsion . | . . . Utility . | . . . Weapon . | . . . Parts Attached 51 | 6 12 33 Power 6 | 1 1 4 Engine 6 | 1 1 4 Core . | . . . Reactor . | . . . Propulsion 12 | 2 2 8 Treads 5 | 2 1 2 Leg 3 | . . 3 Wheel 4 | . 1 3 Hover . | . . . Flight . | . . . Utility 10 | 1 2 7 Device 7 | . 1 6 Storage 2 | 1 1 . Processor . | . . . Hackware . | . . . Protection 1 | . . 1 Artifact . | . . . Weapon 23 | 2 7 14 Energy Gun 4 | 2 2 . Energy Cannon 2 | . . 2 Ballistic Gun 5 | . 3 2 Ballistic Cannon 6 | . . 6 Launcher 6 | . 2 4 Special Weapon . | . . . Impact Weapon . | . . . Slashing Weapon . | . . . Piercing Weapon . | . . . Special Melee Weapon . | . . . Unidentified Prototypes . | . . . Parts Lost 14 | . 2 12 Power 4 | . 1 3 Propulsion 4 | . 1 3 Utility 3 | . . 3 Weapon 3 | . . 3 Highest Loss Streak 5 | . 2 5 To Critical Strikes . | . . . Average Slot Usage (%) 86 | . 93 82 Engine 11 | . 13 10 Treads 12 | . 18 9 Leg 7 | . . 10 Wheel 4 | . 8 2 Device 8 | . 9 8 Storage 5 | . 14 . Protection 7 | . . 11 Energy Gun 1 | . 5 . Energy Cannon 3 | . . 5 Ballistic Gun 8 | . 22 1 Ballistic Cannon 11 | . . 17 Launcher 1 | . . 2 Naked Turns . | . . . Heaviest Build 91 | 12 90 91 Greatest Support 40 | 40 40 40 Greatest Overweight (x) 8 | . 8 4 Average Overweight (x) 1 | . 3 . Largest Inventory Capacity 25 | 8 25 25 Average Capacity 10 | 7 19 6 Most Carried 21 | 4 21 21 Average Carried 7 | 1 10 5 Final Capacity 25 | 8 25 5 Final Carried 21 | 4 21 5 Class Distribution -------------------- 100% | Mutant Dominant Class ---------------- Mutant | -10/Materials Mutant | -10/Subcaves Resources | -11 -10 -10 ----------- Run | Yrd Mat Sub Matter Collected 1621 | 219 405 997 Remotely . | . . . Salvage Created 868 | . 409 459 Parts 59 | . 30 29 Haulers Intercepted 2 | . 2 . Recyclers Shooed 1 | . 1 . Parts Field Recycled . | . . . Retrieved Matter . | . . . Parts Self-Destructed 12 | . . 12 Prevented . | . . . Kills | -11 -10 -10 ------- Run | Yrd Mat Sub Combat Hostiles Destroyed 30 | . 11 19 Guns 8 | . 3 5 Cannons 10 | . . 10 AOE 11 | . 8 3 Classes Destroyed 7 | . 5 2 Worker 1 | . 1 . Hauler 2 | . 2 . Recycler 1 | . 1 . Swarmer 9 | . 5 4 Grunt 7 | . 6 1 Sentry 1 | . . 1 Subdweller 13 | . . 13 Best Kill Streak 6 | . 6 4 Combat Bots Only 6 | . 6 4 Max Kills in Single Turn 3 | . 3 2 Gunslinging . | . . . Exploded 2 | . 2 2 Melee . | . . . Uniques/NPCs Destroyed . | . . . Combat | -11 -10 -10 -------- Run | Yrd Mat Sub Hostile Shots Fired 181 | . 49 132 Missed 40 | . 9 31 Damage Taken 2281 | . 557 1724 Core 256 | . 82 174 Absorbed by Shields 267 | . . 267 Core Remaining (%) 100 | 100 . . Volleys Fired 146 | 3 22 121 Largest 2 | 2 2 2 Hottest 112 | 80 80 112 Shots Fired 222 | 6 38 178 Gun 79 | 6 32 41 Cannon 129 | . . 129 Launcher 14 | . 6 8 Special . | . . . Kinetic 176 | . 26 150 Thermal . | . . . Explosive 6 | . 6 . Electromagnetic 40 | 6 6 28 Robot Hit Streak 19 | 1 5 19 Robot Miss Streak 3 | 3 2 3 Penetration Max . | . . . Secondary Targets 3 | . . 3 Max Gunslinging Chain 1 | . . 1 Shots Hit Robots 111 | 2 22 87 Core Hits 57 | . 29 28 Critical Kills . | . . . Critical Parts Destroyed . | . . . Critical Strikes 4 | . . 4 Blast 4 | . . 4 Melee Attacks . | . . . Impact . | . . . Slashing . | . . . Piercing . | . . . Sneak Attacks . | . . . Combat Hostiles . | . . . Follow-up Attacks . | . . . Damage Inflicted 3015 | 28 808 2179 Guns 795 | 28 314 453 Cannons 1167 | . . 1167 Explosions 1038 | . 479 559 Melee . | . . . Ramming 15 | . 15 . Kinetic 2126 | . 269 1857 Thermal 107 | . . 107 Explosive 479 | . 479 . Electromagnetic 288 | 28 45 215 Impact . | . . . Slashing . | . . . Piercing . | . . . Highest Corruption 12 | . . 12 Average Corruption 12 | . . 12 Corruption Purged . | . . . Corruption Blocked . | . . . Effects 30 | . . 30 Message Errors 7 | . . 7 Matter Fused 9 | . . 9 Heat Flow Errors 2 | . . 2 Energy Discharges 2 | . . 2 Data Loss (minor) 4 | . . 4 Data Loss (major) 3 | . . 3 Alerts 3 | . . 3 Overload Shots . | . . . Overflow Damage . | . . . Projectiles . | . . . Explosions . | . . . Melee . | . . . Knockbacks 5 | . . 5 Impact . | . . . Kinetic 4 | . . 4 Secondary 1 | . . 1 Self-Inflicted Damage 196 | . 89 107 Shots 7 | . 3 4 Rammed 2 | . 2 . Targets Rammed 2 | . 2 . Kicked . | . . . Crushed . | . . . Highest Temperature 192 | 54 72 192 Average Temperature 30 | 29 22 37 Received Heat Transfer 699 | . 219 480 Siege Activations . | . . . Robots Corrupted 1 | . . 1 Combat Hostiles 1 | . . 1 Parts Fried 1 | . . 1 Impact Corruptions . | . . . Robots Melted . | . . . Combat Hostiles . | . . . Parts Melted 1 | . . 1 Heat Transferred 50 | . . 50 Parts Sabotaged . | . . . Parts Stolen . | . . . Parts Stripped . | . . . Power Chain Reactions 1 | . . 1 Alert | -11 -10 -10 ------- Run | Yrd Mat Sub Peak Influence 301 | . 301 . Initial . | . . . Average 74 | . 79 . Maximum Alert Level 1 | . 1 . Low Security (%) 89 | 100 88 . Level 1 10 | . 11 . Level 2 . | . . . Level 3 . | . . . Level 4 . | . . . Level 5 . | . . . High Security . | . . . Max Security . | . . . Squads Dispatched 2 | . 2 . Investigation 1 | . 1 . Extermination . | . . . Reinforcement 1 | . 1 . Assault . | . . . Garrison . | . . . Intercept . | . . . Searches Triggered . | . . . Construction Impeded . | . . . Haulers Reinforced . | . . . Active Scanning Responses . | . . . Cargo Convoy Interrupts . | . . . Stealth | -11 -10 -10 --------- Run | Yrd Mat Sub Distress Signals 2 | . 2 . Communications Jammed . | . . . Distress Signals . | . . . Times Spotted 58 | . 30 28 Peak Tracking Total 7 | . 7 6 Tactical Retreats 2 | . . 2 Traps | -11 -10 -10 ------- Run | Yrd Mat Sub Traps Triggered 4 | . 3 1 Indirectly . | . . . Trap Hack Attempts . | . . . Triggered . | . . . Disarmed . | . . . Reprogrammed . | . . . Reused . | . . . Traps Extracted . | . . . Installed . | . . . Triggered . | . . . Machines | -11 -10 -10 ---------- Run | Yrd Mat Sub Machines Disabled 2 | . 2 . Max in Single Turn 1 | . 1 . Machines Repaired . | . . . Machines Dismantled . | . . . Machines Sabotaged . | . . . Overloaded Fab Kills . | . . . Hacking | -11 -10 -10 --------- Run | Yrd Mat Sub Machines Accessed 6 | . 5 1 Terminals 5 | . 5 . Fabricators . | . . . Repair Stations . | . . . Recycling Units . | . . . Scanalyzers . | . . . Garrison Access . | . . . Total Hacks 17 | . 15 2 Successful 8 | . 6 2 Failed 9 | . 9 . Catastrophic 2 | . 2 . Database Lockouts . | . . . Manual 15 | . 15 . Terminals 15 | . 15 . Fabricators . | . . . Repair Stations . | . . . Recycling Units . | . . . Scanalyzers . | . . . Garrison Access . | . . . Terminal Hacks 5 | . 3 2 Record 2 | . . 2 Robot Analysis 2 | . 2 . Registered Components 1 | . 1 . Fabricator Hacks . | . . . Repair Station Hacks . | . . . Recycling Unit Hacks . | . . . Scanalyzer . | . . . Garrison Access Hacks . | . . . Unauthorized Hacks 3 | . 3 . Terminals 3 | . 3 . Track 1 | . 1 . Disrupt 1 | . 1 . Operators 1 | . 1 . Fabricators . | . . . Repair Stations . | . . . Recycling Units . | . . . Scanalyzers . | . . . Garrison Access . | . . . Data Cores Recovered . | . . . Used . | . . . Hacking Detections 5 | . 5 . Full Trace Events 1 | . 1 . Feedback Events . | . . . Feedback Blocked . | . . . Robot Schematics Acquired . | . . . Robots Built . | . . . Authchips . | . . . Time . | . . . Total Robot Build Rating . | . . . Part Schematics Acquired . | . . . Parts Built . | . . . Authchips . | . . . Time . | . . . Total Part Build Rating . | . . . Parts Repaired . | . . . Time . | . . . Parts Recycled . | . . . Recycled Matter . | . . . Retrieved Matter . | . . . Retrieved Components . | . . . Parts Scanalyzed . | . . . Part Schematics Acquired . | . . . Parts Damaged . | . . . Bothacking | -11 -10 -10 ------------ Run | Yrd Mat Sub Used RIF Installer . | . . . Robots Hacked . | . . . Non-combat . | . . . Combat . | . . . Robot Hacks Applied . | . . . Relay Couplers Released . | . . . Fabnet Peak Effective % . | . . . Robots Rewired . | . . . Allies Hacked . | . . . Hacks Repelled . | . . . Allies | -11 -10 -10 -------- Run | Yrd Mat Sub Total Allies . | . . . Largest Group . | . . . Highest-Rated Group . | . . . Highest-Rated Ally . | . . . Total Orders . | . . . Ally Attacks . | . . . Total Damage . | . . . Kills . | . . . Allies Corrupted . | . . . Allies Melted . | . . . Intel | -11 -10 -10 ------- Run | Yrd Mat Sub Robot Analysis Total 2 | . 2 . Derelict Logs Recovered 3 | . . 3 Drone Launches . | . . . Drone Recoveries . | . . . Exploration | -11 -10 -10 ------------- Run | Yrd Mat Sub Turns Passed 4672 | 96 1531 3045 Spaces Moved 2550 | 50 764 1736 Core 4 | 4 . . Treads 973 | 46 274 653 Legs 809 | . . 809 Wheels 764 | . 490 274 Hover . | . . . Flight . | . . . Fastest Speed 50 | 50 95 80 Average Speed 158 | 151 181 149 Slowest Speed 480 | 160 480 480 Overloaded Moves . | . . . Propulsion Burnouts . | . . . Robots Hopped . | . . . Cave-ins Triggered 1 | . . 1 Exploration Rate (%) 58 | 4 97 74 Regions Visited 2 Branch Regions 1 Pre-discovered Areas 2 | . . 2 Known Exits Taken . | . . . Unknown Exits Taken 2 | 1 1 . Scrap Searched 14 | . . 14 Spaces Dug 23 | . 14 9 Terrain Destroyed 134 | . 33 101 Melee . | . . . Projectile 10 | . . 10 AOE 124 | . 33 91 Terrain Rammed . | . . . Walls Destroyed . | . . . Machines Disabled . | . . . Actions | -11 -10 -10 --------- Run | Yrd Mat Sub Total 2959 | 62 874 2023 Wait 144 | . 46 98 Move 2548 | 49 763 1736 Hop . | . . . Pick Up 38 | 4 22 12 Fast Attach 24 | 6 5 13 Attach 9 | . 2 7 Detach 2 | . . 2 Swap 18 | . 5 13 Drop 28 | . 7 21 Fire 146 | 3 22 121 Melee . | . . . Ram 1 | . 1 . Kick . | . . . Crush 1 | . 1 . Escape Stasis . | . . . Rewire . | . . . Trap . | . . . Miscellaneous . | . . . Route ------- -11/Scrapyard -10/Materials (discovered 6 exits: [*Mat x3] / [*Min x2] / *Sub) -10/Subcaves (discovered 3 exits: [*Mat x2] / [*Rec]) History --------- Turn | Location | Event 2 | -11/Scrapyard | Discovered new exit (range 16) 97 | -11/Scrapyard | Entered Materials 352 | -10/Materials | Build established: Mutant 442 | -10/Materials | Discovered new exit (range 7) 538 | -10/Materials | Discovered new exit (range 16) 626 | -10/Materials | Discovered new exit (range 15) 1079 | -10/Materials | Discovered new exit (range 14) 1367 | -10/Materials | Discovered new exit (range 11) 1596 | -10/Materials | Discovered new exit (range 12) 1628 | -10/Materials | Entered Subcaves 1659 | -10/Subcaves | Discovered new exit (range 16) 1693 | -10/Subcaves | Core integrity fell below 50% 1767 | -10/Subcaves | Lost 5 parts (1p1n1u2w) 2203 | -10/Subcaves | Ambushed by Subdwellers from Twisted Machinery 2209 | -10/Subcaves | Discovered new exit (range 8) 2262 | -10/Subcaves | Discovered new exit (range 16) 2491 | -10/Subcaves | Shifting Twisted Machinery released Sub. Optics 2520 | -10/Subcaves | Shifting Twisted Machinery released Piercing Trap 3043 | -10/Subcaves | Disturbed a concealed Subdweller 3179 | -10/Subcaves | Visited Clippyterm 3182 | -10/Subcaves | Learned location of Deep Caves (-7) 3222 | -10/Subcaves | Learned location of Zion (-7) 3421 | -10/Subcaves | Learned Materials stockpile data 3804 | -10/Subcaves | Crushed by falling debris 3804 | -10/Subcaves | Core integrity fell below 20% 3804 | -10/Subcaves | System corruption reached 10% 3835 | -10/Subcaves | Lost 3 parts (1p1n1u) 3895 | -10/Subcaves | Shifting Twisted Machinery released Sub. Shrapnel Launcher 4041 | -10/Subcaves | Learned Materials stockpile data 4053 | -10/Subcaves | A swath of the cavern ceiling suddenly collapsed 4491 | -10/Subcaves | Shifting Twisted Machinery released Barrage Gun 4673 | -10/Subcaves | Destroyed self with Subdweller Shrapnel Launcher Last Messages --------------- 04283_ RA-JAV(u) builds Twisted Machinery. 04292_ RA-JAV(u) tweaks Twisted Machinery. 04312_ System corrupted: Heat flow error (+232). 04329_ System corrupted: Energy discharge (-23). 04344_ System corrupted: Matter fused (-5). 04360_ System corrupted: Component data lost. 04409_ System corrupted: Heat flow error (+181). 04426_ CXSIX#NO=SFZECWY=#RAVXUXMT/OID38 04458_ System corrupted: IFF burst signal emitted. Barrage Gun falls loose from the Twisted Machinery. 04505_ System corrupted: Matter fused (-10). 04518_ Acquired 10 matter. 04520_ Acquired 9 matter. 04521_ Acquired 11 matter. 04535_ System corrupted: Substantial component data lost. 04561_ LO-H5K(u) tweaks Twisted Machinery. 04569_ System corrupted: Component data lost. 04627_ R9XQGLE%UVK|ANC,BF1URS| 04645_ System corrupted: Matter fused (-8). 04669_ System corrupted: Matter fused (-9). Map ----- +----------------------------------------------------+ | ???????## ### #?????? ##???????????????????? | | ??????## #?????? ##??????????????????? | | ??????# #?????? ##?????????????????? | | ??????# ##????? #?????????????????? | | ??????# #????? #?????????????????? | | ??????# #????? #?????????????????? | | ??????## ##???? #??????????????????? | | ???????## ## ##### ##### ?????????????? | | ???????## ### #????????????? | | ???????# #?# ?????????????? | | ???????# ### ## #????????????????? | | ???????# ## ##?????#????????????????? | | ??####?# #???????????????????????? | | ??# ### #???????????????????????? | | ??# #### ## #?####??????????????????? | | ??# #?# ## ## ## ##?????????????????? | | ??# |### % ### #?????????????????? | | ### != ## %% #?# ## #?????????????????? | | !]!![ # ### ##????????????????????? | | =[ ! # ## #?????????#???????????? | | ]##### # ## ## #??????? ##??????????? | | # #### ## ## ## ##????? #??????????? | | ## ## ## ## #???? #???????????? | | ### ### ;## ##???????????? | | ####?# #?## ;; R ????????? | | #####????? ??# @ % R ????????? | | ##????????? ??###### ;;# #??????????? | | ###?????????? ???????# ;; #?????##??????????? | | ????????????? ??????#; ;; #?????????????????? | | ?????????????" " ???????? ###?????????????????? | | ?????????????" """???????? #???????????????????? | | ??????????????